bitfinex/quotes_BTCUSD_20240810
["timestamp","ask_amount","ask_price","bid_price","bid_amount"]
[1723249816064,0.00986782,61123.0,61105.0,0.0929]
[1723249816065,0.49095,61106.0,61105.0,0.0929]
[1723249816266,0.81825,61106.0,61105.0,0.0929]
[1723249816505,0.81825,61106.0,61105.0,0.10953]
[1723249816849,0.81825,61106.0,61099.0,0.00929]
[1723249816850,0.490998,61100.0,61099.0,0.10219]
[1723249817048,0.163666,61100.0,61099.0,0.10219]
[1723249817221,0.327324,61102.0,61099.0,0.10219]
[1723249817222,0.163661,61102.0,61099.0,0.10219]
[1723249817472,0.163656,61104.0,61099.0,0.10219]
[1723249817672,0.164651,61106.0,61105.0,0.011]
[1723249817787,0.492951,61106.0,61105.0,0.023]
[1723249817990,0.492951,61106.0,61105.0,0.011]
[1723249817991,0.819251,61106.0,61105.0,0.011]
[1723249818434,0.491951,61106.0,61105.0,0.011]
[1723249819122,0.163657,61104.0,61099.0,0.11119]
[1723249819294,0.001,61102.0,61100.0,0.04301125]
[1723249819702,0.327254,61115.0,61100.0,0.04301125]
[1723249819901,0.327284,61109.0,61100.0,0.04301125]
[1723249820102,0.491952,61106.0,61105.0,0.011]
[1723249820336,0.98306692,61106.0,61105.0,0.011]
[1723249820536,1.31036892,61106.0,61105.0,0.012]
[1723249820811,0.163673,61098.0,61094.0,0.0853]
[1723249821009,0.327335,61100.0,61095.0,0.07403157]
[1723249821010,0.16367,61099.0,61095.0,0.07403157]
[1723249821244,0.16381492,61098.0,61094.0,0.0853]
[1723249821368,0.818397,61095.0,61094.0,0.0853]
[1723249821567,0.98221192,61095.0,61094.0,0.0853]
[1723249822000,0.65485292,61095.0,61094.0,0.0853]
[1723249823231,0.98221192,61095.0,61094.0,0.0853]
[1723249823438,0.163695,61089.0,61088.0,0.1427378]
[1723249823616,0.98229192,61089.0,61088.0,0.0574378]
[1723249823812,1.08229192,61089.0,61088.0,0.0574378]
[1723249823988,1.73707392,61089.0,61088.0,0.0574378]
[1723249824204,2.07285465,61089.0,61088.0,0.0574378]
[1723249824416,2.08285465,61089.0,61088.0,0.0574378]
[1723249824641,1.90870495,61089.0,61088.0,0.0574378]
[1723249824975,1.90870495,61089.0,61088.0,0.0714378]
[1723249824976,2.5408712,61089.0,61088.0,0.0714378]
[1723249825107,2.59320494,61089.0,61088.0,0.0574378]
[1723249825319,2.33788604,61089.0,61088.0,0.0574378]
[1723249825514,2.33788604,61089.0,61088.0,0.05356044]
[1723249825515,2.8119257,61089.0,61088.0,0.05356044]
[1723249825869,2.8119257,61089.0,61088.0,0.06656044]
[1723249825870,2.78848191,61089.0,61088.0,0.06656044]
[1723249826076,2.62433221,61089.0,61088.0,0.06656044]
[1723249826244,0.818757,61068.0,61067.0,0.49107874]
[1723249826450,0.98257192,61068.0,61067.0,0.49107874]
[1723249826768,0.818797,61065.0,61063.0,0.0853]
[1723249827096,0.818797,61065.0,61059.0,0.0079099]
[1723249827097,0.491319,61060.0,61059.0,0.0079099]
[1723249827248,0.818865,61060.0,61059.0,0.0079099]
[1723249827449,0.491319,61060.0,61059.0,0.0079099]
[1723249827653,0.98267992,61060.0,61059.0,0.0079099]
[1723249827986,1.08267992,61060.0,61059.0,0.0079099]
[1723249828350,0.01014134,61070.0,61059.0,0.0079099]
[1723249828351,0.327502,61069.0,61059.0,0.1656099]
[1723249828636,0.163765,61063.0,61062.0,0.08184646]
[1723249828938,0.163759,61065.0,61064.0,0.005]
[1723249829126,0.163755,61067.0,61064.0,0.005]
[1723249829327,0.32756992,61067.0,61064.0,0.005]
[1723249829492,0.49132792,61067.0,61062.0,0.08184646]
[1723249829744,0.16381492,61067.0,61062.0,0.12673382]
[1723249829969,0.164765,61063.0,61062.0,0.13373382]
[1723249830330,0.16381492,61067.0,61059.0,0.1766099]
[1723249830533,0.163769,61062.0,61059.0,0.1766099]
[1723249830853,0.163773,61060.0,61059.0,0.1656099]
[1723249831086,0.65513392,61060.0,61059.0,0.0932099]
[1723249831280,0.65513392,61060.0,61059.0,0.0079099]
[1723249831281,0.98267992,61060.0,61059.0,0.0079099]
[1723249831483,1.41022592,61060.0,61059.0,0.0079099]
[1723249831723,1.41022592,61060.0,61059.0,0.0159099]
[1723249832161,1.45710806,61060.0,61059.0,0.0079099]
[1723249832305,1.41122592,61060.0,61059.0,0.0179099]
[1723249832990,1.58343508,61060.0,61059.0,0.0179099]
[1723249833187,1.43322592,61060.0,61059.0,0.0179099]
[1723249833391,1.91452442,61060.0,61059.0,0.0179099]
[1723249833597,1.94805913,61060.0,61059.0,0.0199099]
[1723249833837,1.94805913,61060.0,61058.0,0.009152]
[1723249833838,1.236232,61059.0,61058.0,0.009152]
[1723249834195,1.236232,61059.0,61051.0,0.0001]
[1723249834196,0.818972,61052.0,61051.0,0.0001]
[1723249834369,1.93688335,61052.0,61051.0,0.0001]
[1723249834728,1.92688335,61052.0,61051.0,0.0001]
[1723249835134,1.93688335,61052.0,61051.0,0.0001]
[1723249835560,1.89998937,61052.0,61051.0,0.0011]
[1723249835805,1.93694208,61052.0,61051.0,0.0011]
[1723249836011,1.94694208,61052.0,61051.0,0.0011]
[1723249836164,1.93694208,61052.0,61051.0,0.0011]
[1723249836366,0.66719792,61052.0,61051.0,0.0011]
[1723249836566,0.67919792,61052.0,61051.0,0.0021]
[1723249836772,1.00678692,61052.0,61051.0,0.0021]
[1723249836970,0.99478692,61052.0,61051.0,0.0011]
[1723249837234,0.16381492,61052.0,61051.0,0.0001]
[1723249837387,0.16381492,61052.0,61051.0,0.0011]
[1723249837388,0.33960892,61052.0,61051.0,0.0011]
[1723249837588,0.27581492,61052.0,61051.0,0.0011]
[1723249837792,0.44060892,61052.0,61051.0,0.0001]
[1723249838001,1.08278692,61052.0,61051.0,0.0001]
[1723249838194,0.002,61052.0,61051.0,0.0001]
[1723249839219,0.98478692,61052.0,61051.0,0.0001]
[1723249839688,0.65719792,61052.0,61051.0,0.0010152]
[1723249840192,0.65519792,61052.0,61051.0,0.0010152]
[1723249840400,0.98278692,61052.0,61051.0,0.0010152]
[1723249840610,1.41037592,61052.0,61051.0,0.0040152]
[1723249841015,1.76196492,61052.0,61051.0,0.0080152]
[1723249841418,2.20061365,61052.0,61051.0,0.0040152]
[1723249841620,2.29649101,61052.0,61051.0,0.0040152]
[1723249841849,1.96890201,61052.0,61051.0,0.0040152]
[1723249842020,1.87902465,61052.0,61051.0,0.0020152]
[1723249842229,2.46962272,61052.0,61051.0,0.0020152]
[1723249842401,2.08750273,61052.0,61051.0,0.0020152]
[1723249842617,2.10050179,61052.0,61051.0,0.0020152]
[1723249843270,2.10050179,61052.0,61029.0,0.009152]
[1723249843271,1.146845,61037.0,61029.0,0.009152]
[1723249843473,1.146845,61037.0,61022.0,0.00135012]
[1723249843474,0.0143,61027.0,61022.0,0.00135012]
[1723249843678,0.81951,61012.0,61004.0,0.0020278]
[1723249843920,1.41112892,61012.0,61004.0,0.0020278]
[1723249844351,1.73893292,61012.0,61004.0,0.0020278]
[1723249844525,1.76193292,61012.0,61004.0,0.0020278]
[1723249844923,1.93608262,61012.0,61004.0,0.0020278]
[1723249845097,2.08863396,61012.0,61011.0,0.010263]
[1723249845309,2.20205416,61012.0,61011.0,0.010263]
[1723249845513,1.72110046,61012.0,61011.0,0.010263]
[1723249845880,1.60682892,61012.0,61011.0,0.010263]
[1723249846081,1.61782892,61012.0,61011.0,0.010263]
[1723249846202,1.94563292,61012.0,61011.0,0.010263]
[1723249846406,1.60782892,61012.0,61011.0,0.009263]
[1723249846806,1.65969282,61012.0,61011.0,0.009263]
[1723249847004,1.10332492,61012.0,61011.0,0.009263]
[1723249847425,0.99432492,61012.0,61011.0,0.009263]
[1723249847650,0.66652092,61012.0,61011.0,0.009263]
[1723249847854,0.67452092,61012.0,61011.0,0.009263]
[1723249848065,0.66352092,61012.0,61011.0,0.009263]
[1723249848204,0.99432492,61012.0,61011.0,0.009263]
[1723249848408,1.09375741,61012.0,61011.0,0.009263]
[1723249848604,1.51056141,61012.0,61011.0,0.009263]
[1723249848850,1.41112892,61012.0,61011.0,0.009263]
[1723249849096,1.42012892,61012.0,61011.0,0.009263]
[1723249849304,1.41112892,61012.0,61011.0,0.009263]
[1723249849586,1.77293292,61012.0,61011.0,0.009263]
[1723249849801,1.94563292,61012.0,61011.0,0.009263]
[1723249849984,2.08878262,61012.0,61011.0,0.009263]
[1723249850194,1.91063292,61012.0,61011.0,0.009263]
[1723249850396,1.42012892,61012.0,61011.0,0.009263]
[1723249850819,0.92851,61012.0,61011.0,0.009263]
[1723249851045,1.42012892,61012.0,61011.0,0.009263]
[1723249851248,1.42412892,61012.0,61011.0,0.009263]
[1723249851449,1.09632492,61012.0,61011.0,0.009263]
[1723249851652,1.10532492,61012.0,61011.0,0.009263]
[1723249851774,0.76452092,61012.0,61011.0,0.009263]
[1723249851975,0.77452092,61012.0,61011.0,0.009263]
[1723249852286,1.10232492,61012.0,61011.0,0.009263]
[1723249852733,1.43012892,61012.0,61011.0,0.009263]
[1723249853118,1.42112892,61012.0,61011.0,0.009263]
[1723249853633,1.41912892,61012.0,61011.0,0.009263]
[1723249854035,1.84053292,61012.0,61011.0,0.009263]
[1723249854243,1.51272892,61012.0,61011.0,0.009263]
[1723249854881,1.87626178,61012.0,61011.0,0.009263]
[1723249855088,1.88526178,61012.0,61011.0,0.010263]
[1723249855309,1.88526178,61012.0,61011.0,0.009263]
[1723249855310,2.05848984,61012.0,61011.0,0.009263]
[1723249855525,2.03848984,61012.0,61011.0,0.009263]
[1723249855733,2.06848984,61012.0,61011.0,0.010263]
[1723249855934,2.06849144,61012.0,61011.0,0.010263]
[1723249856399,2.05849144,61012.0,61011.0,0.010263]
[1723249856606,2.06049144,61012.0,61011.0,0.010263]
[1723249856833,0.02,61010.0,61004.0,0.0020278]
[1723249857039,1.80364892,61010.0,61004.0,0.0020278]
[1723249857250,2.23146392,61010.0,61009.0,1e-08]
[1723249857442,2.65112538,61010.0,61009.0,1e-08]
[1723249857651,2.66137892,61010.0,61009.0,1e-08]
[1723249857919,2.66748672,61010.0,61009.0,1e-08]
[1723249858128,3.02658672,61010.0,61009.0,1e-08]
[1723249858301,3.05258672,61010.0,61009.0,1e-08]
[1723249858532,3.13586754,61010.0,61009.0,1e-08]
[1723249858711,3.12186754,61010.0,61009.0,1e-08]
[1723249859109,2.7485152,61010.0,61009.0,1e-08]
[1723249859311,2.72452744,61010.0,61009.0,1e-08]
[1723249859514,2.66969796,61010.0,61009.0,1e-08]
[1723249859695,1.72379204,61010.0,61009.0,1e-08]
[1723249859900,1.65298192,61010.0,61009.0,1e-08]
[1723249860329,1.31116692,61010.0,61009.0,1e-08]
[1723249860668,1.32516692,61010.0,61009.0,1e-08]
[1723249861295,1.31116692,61010.0,61009.0,1e-08]
[1723249861626,1.33916692,61010.0,61009.0,1e-08]
[1723249861777,1.45628361,61010.0,61009.0,1e-08]
[1723249861957,2.26933484,61010.0,61009.0,1e-08]
[1723249862160,2.28933484,61010.0,61009.0,1e-08]
[1723249862381,2.27633484,61010.0,61009.0,1e-08]
[1723249862562,2.29933484,61010.0,61009.0,1e-08]
[1723249862763,2.38633484,61010.0,61009.0,1e-08]
[1723249862962,2.40544422,61010.0,61009.0,1e-08]
[1723249863160,2.41244422,61010.0,61009.0,1e-08]
[1723249863367,1.823125,61005.0,61004.0,8.1e-07]
[1723249863589,2.7512792,61005.0,61004.0,8.1e-07]
[1723249863794,1.157559,60999.0,60998.0,0.0037272]
[1723249864013,2.16816829,60999.0,60998.0,0.0037272]
[1723249864159,2.15708729,60999.0,60998.0,0.0037272]
[1723249864491,1.82921329,60999.0,60998.0,0.0037272]
[1723249864696,1.78158769,60999.0,60998.0,0.0037272]
[1723249865169,1.78158769,60999.0,60998.0,0.0046424]
[1723249865170,1.41137392,60999.0,60998.0,0.0046424]
[1723249865367,1.41137392,60999.0,60998.0,0.0982424]
[1723249865368,0.99749992,60999.0,60998.0,0.0982424]
[1723249865499,0.98349992,60999.0,60998.0,0.0982424]
[1723249866080,1.32437392,60999.0,60998.0,0.0982424]
[1723249866352,0.99649992,60999.0,60998.0,0.0982424]
[1723249866552,0.99649992,60999.0,60998.0,0.17744598]
[1723249866553,0.933685,60999.0,60998.0,0.17744598]
[1723249866902,1.08349992,60999.0,60998.0,0.1664424]
[1723249867081,1.08649992,60999.0,60998.0,0.0982424]
[1723249867289,1.41437392,60999.0,60998.0,0.0982424]
[1723249867664,1.08349992,60999.0,60998.0,0.0982424]
[1723249868182,1.08349992,60999.0,60998.0,0.0992424]
[1723249868380,1.09449992,60999.0,60998.0,0.0992424]
[1723249868556,1.42237392,60999.0,60998.0,0.0992424]
[1723249868757,0.42775192,60999.0,60998.0,0.0992424]
[1723249869005,0.32865,61010.0,60998.0,0.0992424]
[1723249869143,0.02569364,61006.0,61005.0,0.23212]
[1723249869345,0.000832,61010.0,61009.0,0.49173]
[1723249869554,0.000832,61010.0,61009.0,0.98135]
[1723249869801,0.000832,61010.0,61009.0,0.65353]
[1723249870030,0.000832,61010.0,61009.0,0.1618]
[1723249870205,0.164739,61010.0,61009.0,0.1618]
[1723249870405,0.492554,61010.0,61009.0,0.1618]
[1723249870962,0.164739,61010.0,61009.0,0.1618]
[1723249871169,0.164739,61010.0,61009.0,0.1628]
[1723249871170,0.493554,61010.0,61009.0,0.1628]
[1723249871418,1.149184,61010.0,61009.0,0.0946]
[1723249871626,1.11618206,61010.0,61009.0,0.001]
[1723249871858,1.11618206,61010.0,60998.0,0.0046424]
[1723249871859,0.491811,60999.0,60998.0,0.0046424]
[1723249872016,0.1,61009.0,60999.0,0.0936]
[1723249872217,0.101832,61010.0,61009.0,0.0936]
[1723249872218,0.001832,61010.0,61009.0,0.0936]
[1723249872394,0.002832,61010.0,61009.0,0.32671]
[1723249872612,0.002832,61010.0,61009.0,0.1628]
[1723249872810,0.165739,61010.0,61009.0,0.1618]
[1723249873020,0.001832,61010.0,61009.0,0.1618]
[1723249873223,0.001832,61010.0,61009.0,0.65353]
[1723249873569,0.000832,61010.0,61009.0,0.65353]
[1723249873704,0.001832,61010.0,61009.0,0.65753]
[1723249873919,0.001832,61010.0,61009.0,1.0838861]
[1723249874121,0.000833,61022.0,61016.0,0.01]
[1723249874340,0.000833,61022.0,61021.0,1.07303646]
[1723249874563,0.000833,61022.0,61021.0,1.39079246]
[1723249874786,0.000833,61022.0,61021.0,1.49885563]
[1723249874989,0.000833,61022.0,61021.0,1.0910153]
[1723249876052,0.000833,61022.0,61021.0,0.18977884]
[1723249876256,0.001833,61022.0,61021.0,0.1628]
[1723249876531,0.32852292,61022.0,61021.0,0.1618]
[1723249876654,0.65627292,61022.0,61021.0,0.0936]
[1723249876857,1.08502292,61022.0,61021.0,0.0946]
[1723249877045,1.08502292,61022.0,61007.0,0.327827]
[1723249877046,0.26564792,61022.0,61012.0,0.0936]
[1723249877242,0.26381492,61021.0,61012.0,0.0936]
[1723249877448,0.327762,61020.0,61012.0,0.0936]
[1723249877697,0.42769892,61019.0,61012.0,0.0936]
[1723249877869,0.163889,61017.0,61012.0,0.0936]
[1723249878046,0.16381492,61016.0,61012.0,0.0936]
[1723249878249,0.16381492,61016.0,61013.0,0.08074525]
[1723249878699,0.001833,61022.0,61015.0,0.08184646]
[1723249878901,0.000833,61022.0,61019.0,0.163881]
[1723249879108,0.000833,61022.0,61021.0,0.0902]
[1723249879847,0.000833,61022.0,61021.0,0.254078]
[1723249880054,0.000833,61022.0,61021.0,0.0902]
[1723249880260,0.65627292,61022.0,61021.0,0.0902]
[1723249880375,0.65627292,61022.0,61014.0,0.0902]
[1723249880376,0.327788,61015.0,61014.0,0.0902]
[1723249880573,0.591682,61015.0,61014.0,0.0902]
[1723249880804,0.91947,61015.0,61014.0,0.0902]
[1723249881087,0.1,61015.0,61014.0,0.0902]
[1723249881288,0.263894,61015.0,61014.0,0.10749617]
[1723249882132,0.264894,61015.0,61014.0,0.11049617]
[1723249882333,0.101,61015.0,61014.0,0.11049617]
[1723249882536,0.001,61015.0,61014.0,0.11049617]
[1723249882739,0.001,61015.0,61014.0,0.27439217]
[1723249882980,0.001,61015.0,61014.0,0.28339217]
[1723249882981,0.002,61015.0,61014.0,0.28339217]
[1723249883184,0.001,61015.0,61014.0,0.11049617]
[1723249883545,0.164894,61015.0,61014.0,0.0992]
[1723249883746,0.327764,61020.0,61014.0,0.0932]
[1723249883925,0.164894,61015.0,61014.0,0.0932]
[1723249884126,0.492682,61015.0,61014.0,0.0932]
[1723249884422,0.491682,61015.0,61014.0,0.0902]
[1723249884613,0.327772,61018.0,61014.0,0.0902]
[1723249884813,0.327772,61018.0,61014.0,0.0932]
[1723249884814,0.164894,61015.0,61014.0,0.0932]
[1723249884968,0.492682,61015.0,61014.0,0.0932]
[1723249885174,0.001,61015.0,61014.0,0.11079617]
[1723249885331,0.001,61015.0,61014.0,0.11979617]
[1723249885332,0.002,61015.0,61014.0,0.11979617]
[1723249885534,0.001,61015.0,61014.0,0.11079617]
[1723249885758,0.001,61015.0,61014.0,0.11407372]
[1723249886045,0.001,61015.0,61014.0,0.11907375]
[1723249886253,0.001,61015.0,61014.0,0.27796975]
[1723249886551,0.001,61015.0,61014.0,0.61176275]
[1723249886781,0.001,61015.0,61014.0,0.61476275]
[1723249887351,0.001,61015.0,61014.0,0.12007375]
[1723249887506,0.492682,61015.0,61014.0,0.0992]
[1723249887899,0.492682,61015.0,61014.0,0.012]
[1723249887900,0.82147,61015.0,61014.0,0.012]
[1723249888383,0.82047,61015.0,61014.0,0.009]
[1723249888589,1.41207292,61015.0,61014.0,0.003]
[1723249888766,1.08428492,61015.0,61014.0,0.003]
[1723249888916,1.41207292,61015.0,61014.0,0.012]
[1723249889461,1.41207292,61015.0,61014.0,0.003]
[1723249889462,1.08428492,61015.0,61014.0,0.003]
[1723249889841,0.819537,61010.0,61009.0,0.0009152]
[1723249890017,1.41116692,61010.0,61009.0,0.0009152]
[1723249890445,1.50849224,61010.0,61009.0,0.0009152]
[1723249890851,1.83630724,61010.0,61009.0,0.0009152]
[1723249891049,1.83788447,61010.0,61009.0,0.0009152]
[1723249891455,2.15663417,61010.0,61009.0,0.0009152]
[1723249891691,2.51744917,61010.0,61009.0,0.0009152]
[1723249891880,2.57655868,61010.0,61009.0,0.0019152]
[1723249892051,2.81593763,61010.0,61009.0,0.0019152]
[1723249892276,2.81593763,61010.0,61009.0,2e-07]
[1723249892277,3.49906263,61010.0,61009.0,2e-07]
[1723249892635,1.475433,60999.0,60994.0,0.0026304]
[1723249892847,2.62076415,60999.0,60994.0,0.0026304]
[1723249892999,1.147576,60998.0,60997.0,0.00897406]
[1723249893198,1.85717247,60998.0,60997.0,0.00897406]
[1723249893808,1.83417247,60998.0,60997.0,0.00897406]
[1723249894323,1.78725357,60998.0,60997.0,0.00897406]
[1723249894484,1.83552935,60998.0,60997.0,0.00897406]
[1723249894858,1.83521485,60998.0,60997.0,0.00897406]
[1723249895077,1.52133778,60998.0,60997.0,0.00997406]
[1723249895510,1.52133778,60998.0,60997.0,0.17137406]
[1723249895511,0.26588586,60998.0,60997.0,0.17137406]
[1723249895656,0.006,60998.0,60997.0,0.18877451]
[1723249895866,0.327858,61002.0,60997.0,0.18777451]
[1723249896063,0.327781,61017.0,60997.0,0.18877451]
[1723249896264,0.006,60998.0,60997.0,0.17137406]
[1723249896496,0.491818,60998.0,60997.0,0.17037406]
[1723249896697,0.491818,60998.0,60997.0,0.00897406]
[1723249896698,1.31139092,60998.0,60997.0,0.00897406]
[1723249897036,1.52737419,60998.0,60997.0,0.00997406]
[1723249897161,1.84925319,60998.0,60997.0,0.00897406]
[1723249897362,2.25363219,60998.0,60997.0,0.00897406]
[1723249897819,2.26463219,60998.0,60997.0,0.00897406]
[1723249897975,2.82291557,60998.0,60997.0,0.00897406]
[1723249898195,2.84191557,60998.0,60997.0,0.00897406]
[1723249898391,2.83491557,60998.0,60997.0,0.00897406]
[1723249898601,2.85591557,60998.0,60997.0,0.00897406]
[1723249898787,2.84291557,60998.0,60997.0,0.00897406]
[1723249899035,2.85291557,60998.0,60997.0,0.00897406]
[1723249899249,2.84691557,60998.0,60997.0,0.00997406]
[1723249899448,2.85291557,60998.0,60997.0,0.00897406]
[1723249899655,2.85291557,60998.0,60994.0,4.6e-07]
[1723249899656,1.921922,60995.0,60994.0,4.6e-07]
[1723249899886,2.83385387,60995.0,60994.0,4.6e-07]
[1723249900048,2.95685387,60995.0,60994.0,4.6e-07]
[1723249900212,3.28474887,60995.0,60994.0,4.6e-07]
[1723249900863,2.239921,60992.0,60991.0,4.6e-07]
[1723249901040,3.08990257,60992.0,60991.0,4.6e-07]
[1723249901257,2.87698901,60992.0,60991.0,4.6e-07]
[1723249901462,3.0899314,60992.0,60991.0,4.6e-07]
[1723249901880,3.1616314,60992.0,60991.0,4.6e-07]
[1723249902328,2.9974817,60992.0,60991.0,4.6e-07]
[1723249902630,2.76262296,60992.0,60991.0,4.6e-07]
[1723249902771,2.99344812,60992.0,60991.0,4.6e-07]
[1723249903168,2.99844812,60992.0,60991.0,0.00100046]
[1723249903412,2.99803096,60992.0,60991.0,4.6e-07]
[1723249903638,2.94077266,60992.0,60991.0,4.6e-07]
[1723249904012,2.93677266,60992.0,60991.0,4.6e-07]
[1723249904234,2.95077266,60992.0,60991.0,4.6e-07]
[1723249904640,2.95077266,60992.0,60991.0,2e-07]
[1723249904641,2.94077266,60992.0,60991.0,2e-07]
[1723249904861,3.04418442,60992.0,60991.0,2e-07]
[1723249905053,3.02360554,60992.0,60991.0,2e-07]
[1723249905255,1.912071,60990.0,60989.0,4.6e-07]
[1723249905472,2.59831452,60990.0,60989.0,4.6e-07]
[1723249905740,2.59831452,60990.0,60971.0,0.0001]
[1723249905741,0.492012,60974.0,60971.0,0.0001]
[1723249905937,1.43484292,60974.0,60971.0,0.0001]
[1723249906092,1.76285092,60974.0,60971.0,0.0001]
[1723249906921,1.08383492,60974.0,60971.0,0.0001]
[1723249907188,0.42781892,60974.0,60973.0,0.0927]
[1723249907360,0.26381492,60974.0,60973.0,0.1917819]
[1723249907561,0.76782692,60974.0,60973.0,0.1917819]
[1723249907773,1.42384292,60974.0,60973.0,0.1917819]
[1723249908120,1.41184292,60974.0,60973.0,0.0927]
[1723249908270,1.41884292,60974.0,60973.0,0.0927]
[1723249908470,1.42584292,60974.0,60973.0,0.0937]
[1723249908856,1.41884292,60974.0,60973.0,0.0927]
[1723249909036,1.42584292,60974.0,60973.0,0.0937]
[1723249909235,0.76982692,60974.0,60973.0,0.10308]
[1723249909432,0.76282692,60974.0,60973.0,0.10208]
[1723249909700,1.09783492,60974.0,60973.0,0.0937]
[1723249909992,1.08383492,60974.0,60973.0,0.0927]
[1723249910190,1.09283492,60974.0,60973.0,0.0927]
[1723249910604,1.08383492,60974.0,60973.0,0.0927]
[1723249911015,1.09083492,60974.0,60973.0,0.0927]
[1723249911218,1.41884292,60974.0,60973.0,0.0001]
[1723249911374,1.41784292,60974.0,60973.0,0.0011]
[1723249911759,1.41684292,60974.0,60973.0,0.0001]
[1723249912152,1.44584292,60974.0,60973.0,0.0011]
[1723249912326,1.43984292,60974.0,60973.0,0.0001]
[1723249912559,1.76785092,60974.0,60973.0,0.0001]
[1723249912762,1.77385092,60974.0,60973.0,0.0011]
[1723249912890,1.77385092,60974.0,60973.0,0.0001]
[1723249912891,1.84937018,60974.0,60973.0,0.0001]
[1723249913090,2.00851988,60974.0,60973.0,0.0001]
[1723249913332,2.44102788,60974.0,60973.0,0.0011]
[1723249913541,2.13201988,60974.0,60973.0,0.0011]
[1723249913920,2.12301988,60974.0,60973.0,0.0011]
[1723249914119,2.45102788,60974.0,60973.0,0.0011]
[1723249914319,2.13701988,60974.0,60973.0,0.0011]
[1723249914519,1.85837018,60974.0,60973.0,0.0001]
[1723249914823,1.86044839,60974.0,60973.0,0.0011]
[1723249915462,1.81213932,60974.0,60973.0,0.0011]
[1723249915639,1.86062481,60974.0,60973.0,0.0011]
[1723249916051,1.8623669,60974.0,60973.0,0.0011]
[1723249916449,2.0265166,60974.0,60973.0,0.0011]
[1723249916776,2.0355166,60974.0,60973.0,0.0011]
[1723249917147,2.03469116,60974.0,60973.0,0.0020163]
[1723249917597,2.02569116,60974.0,60973.0,0.0020163]
[1723249917770,2.42549135,60974.0,60973.0,0.0020163]
[1723249917971,2.77349935,60974.0,60973.0,0.0020163]
[1723249918407,2.76449935,60974.0,60973.0,0.0020163]
[1723249918639,2.77349935,60974.0,60973.0,0.0020163]
[1723249918915,2.70199507,60974.0,60973.0,0.0010163]
[1723249919129,2.78696585,60974.0,60973.0,0.0020163]
[1723249919337,2.78096585,60974.0,60973.0,0.0010163]
[1723249919558,3.32096585,60974.0,60973.0,3e-07]
[1723249919745,2.77696585,60974.0,60973.0,0.0010003]
[1723249919979,3.94329785,60974.0,60973.0,0.0010003]
[1723249920168,4.06948086,60974.0,60973.0,0.0010003]
[1723249920367,4.08348086,60974.0,60973.0,0.0010003]
[1723249920675,4.08348086,60974.0,60971.0,3e-07]
[1723249920676,1.506085,60972.0,60971.0,3e-07]
[1723249920908,2.7977272,60972.0,60971.0,3e-07]
[1723249921099,3.2357462,60972.0,60971.0,3e-07]
[1723249921503,2.67916071,60972.0,60971.0,3e-07]
[1723249921703,2.72964314,60972.0,60971.0,3e-07]
[1723249921937,2.71964314,60972.0,60971.0,3e-07]
[1723249922158,2.65719488,60972.0,60971.0,3e-07]
[1723249922282,2.5216782,60972.0,60971.0,3e-07]
[1723249922909,2.1266592,60972.0,60971.0,3e-07]
[1723249923529,2.1406592,60972.0,60971.0,3e-07]
[1723249924045,2.1266592,60972.0,60971.0,3e-07]
[1723249924467,2.1406592,60972.0,60971.0,3e-07]
[1723249924659,2.1636592,60972.0,60971.0,3e-07]
[1723249924859,1.87659048,60972.0,60971.0,0.0010003]
[1723249925062,2.16350429,60972.0,60971.0,0.0010003]
[1723249925259,1.77689992,60972.0,60971.0,3e-07]
[1723249925415,2.174614,60972.0,60971.0,0.0010003]
[1723249926323,2.160614,60972.0,60971.0,3e-07]
[1723249926663,2.160614,60972.0,60971.0,0.0010003]
[1723249926664,2.15325995,60972.0,60971.0,0.0010003]
[1723249927023,2.16725995,60972.0,60971.0,0.0010003]
[1723249927233,1.148423,60953.0,60952.0,0.0921]
[1723249927453,1.06696995,60953.0,60952.0,0.0921]
[1723249927661,1.16696995,60953.0,60952.0,0.0921]
[1723249928001,1.16696995,60953.0,60952.0,0.1110437]
[1723249928318,1.16696995,60953.0,60952.0,0.0921]
[1723249928319,1.08411692,60953.0,60952.0,0.0921]
[1723249928659,1.17592361,60953.0,60952.0,0.0921]
[1723249929440,1.52704461,60953.0,60952.0,0.0921]
[1723249929649,1.52704461,60953.0,60952.0,0.0961]
[1723249930046,1.52604461,60953.0,60952.0,0.0961]
[1723249930250,1.52704461,60953.0,60952.0,0.0961]
[1723249930473,1.52704461,60953.0,60952.0,0.0921]
[1723249930676,1.52704461,60953.0,60951.0,0.0001]
[1723249930677,0.820317,60952.0,60951.0,0.0001]
[1723249930843,1.91631079,60952.0,60951.0,0.0001]
[1723249931035,2.24443779,60952.0,60951.0,0.0001]
[1723249931234,2.26443779,60952.0,60951.0,0.0001]
[1723249931440,2.26443779,60952.0,60950.0,1e-06]
[1723249931441,1.602194,60951.0,60950.0,1e-06]
[1723249931672,3.07056919,60951.0,60950.0,1e-06]
[1723249931876,3.26283497,60951.0,60950.0,1e-06]
[1723249932189,3.2986866,60951.0,60950.0,1e-06]
[1723249932377,0.01,60936.0,60931.0,0.0001]
[1723249932579,1.01439992,60932.0,60931.0,0.0001]
[1723249932826,2.15495138,60932.0,60931.0,0.0001]
[1723249932995,2.50318538,60932.0,60931.0,0.0001]
[1723249933202,2.59878538,60932.0,60931.0,0.0001]
[1723249933410,2.14495138,60932.0,60931.0,0.0001]
[1723249933607,1.85851614,60932.0,60931.0,0.0001]
[1723249933818,1.86951614,60932.0,60931.0,0.0011]
[1723249933970,1.85951614,60932.0,60931.0,0.0011]
[1723249934182,1.87967204,60932.0,60931.0,0.0011]
[1723249934603,2.03382174,60932.0,60931.0,0.0011]
[1723249934802,2.80658587,60932.0,60931.0,0.0011]
[1723249934998,2.82131674,60932.0,60931.0,0.0011]
[1723249935201,2.55754061,60932.0,60931.0,0.0011]
[1723249935551,2.55754061,60932.0,60931.0,0.0001]
[1723249935552,1.97011504,60932.0,60931.0,0.0001]
[1723249935755,2.00411504,60932.0,60931.0,0.0011]
[1723249935943,1.9141868,60932.0,60931.0,0.0011]
[1723249936112,0.16416,60916.0,60915.0,0.0106912]
[1723249936313,0.75629492,60916.0,60915.0,0.0106912]
[1723249936512,1.41293492,60916.0,60915.0,0.0106912]
[1723249936900,1.81314039,60916.0,60915.0,0.0106912]
[1723249937105,1.82749604,60916.0,60915.0,0.0106912]
[1723249937978,1.84449604,60916.0,60915.0,0.0106912]